fUSD/lending_fUSD_20260528
["ID","MTS","AMOUNT","RATE_DAILY","PERIOD"]
[423220804,1779943831000,-289.99839403,0.0001241,2]
[423220803,1779943831000,-500.0,0.00012409,2]
[423220802,1779943831000,-124.31966713,0.00012409,2]
[423220801,1779943831000,-268.31511193,0.00012409,2]
[423220799,1779943831000,-107.36522094,0.00012409,2]
[423220782,1779943831000,-183.77646096,0.00012409,2]
[423220794,1779943831000,-85.97897906,0.00012409,2]
[423220783,1779943831000,-316.22353904,0.00012409,2]
[423220784,1779943831000,-414.02102094,0.00012409,2]
[423220778,1779943831000,-500.0,0.00012409,2]
[423220780,1779943831000,-65.43772387,0.00012409,2]
[423220779,1779943831000,-434.56227613,0.00012409,2]
[423220777,1779943831000,-35.88665145,0.00012409,2]
[423220797,1779943831000,-500.0,0.00012409,2]
[423220821,1779943832000,-1809.24,0.00012688,2]
[423220823,1779943832000,-280.9652025,0.00012754,2]
[423220816,1779943832000,-866.0,0.00012581,2]
[423220817,1779943832000,-1680.0,0.00012599,2]
[423220814,1779943832000,-6056.0,0.0001254,2]
[423220819,1779943832000,-268.79,0.00012625,2]
[423220815,1779943832000,-2509.12741533,0.00012575,2]
[423220811,1779943832000,-26578.83357584,0.0001241,2]
[423220812,1779943832000,-167.7236659,0.0001241,2]
[423220809,1779943832000,-500.0,0.00012409,2]
[423220810,1779943832000,-1777.63330726,0.0001241,2]
[423220808,1779943832000,-816.242326,0.0001241,2]
[423220807,1779943832000,-239.1397018,0.0001241,2]
[423220824,1779943832000,-326.36430047,0.00012754,2]
[423220813,1779943832000,-255.0,0.00012519,2]
[423220822,1779943832000,-898.33,0.00012706,2]
[423220818,1779943832000,-4630.82,0.0001261,2]
[423220825,1779943832000,-30886.01,0.00012755,2]
[423220820,1779943832000,-2454.35,0.00012688,2]
[423220840,1779943832000,-6733.66891354,0.00013484,2]
[423220836,1779943832000,-13868.10423589,0.00013426,2]
[423220839,1779943832000,-52.29576411,0.00013455,2]
[423220837,1779943832000,-221.27,0.00013442,2]
[423220834,1779943832000,-268.79,0.00013326,2]
[423220835,1779943832000,-898.33,0.00013341,2]
[423220833,1779943832000,-2000.0,0.00013189,2]
[423220838,1779943832000,-242.75,0.00013446,2]
[423220827,1779943832000,-157.69,0.00012827,2]
[423220828,1779943832000,-200.0,0.00012867,2]
[423220826,1779943832000,-150.0,0.00012764,2]
[423220831,1779943832000,-268.79,0.00012975,2]
[423220832,1779943832000,-898.33,0.00013023,2]
[423220830,1779943832000,-1201.19,0.0001295,2]
[423220829,1779943832000,-500.0,0.00012876,2]
[423220884,1779943833000,-150.0,0.0001383,2]
[423220881,1779943833000,-150.0,0.00013787,2]
[423220885,1779943833000,-166.66,0.00013836,2]
[423220877,1779943833000,-150.0,0.00013737,2]
[423220879,1779943833000,-150.0,0.0001376,2]
[423220880,1779943833000,-1043.37632943,0.00013769,8]
[423220878,1779943833000,-150.0,0.00013745,2]
[423220876,1779943833000,-150.0,0.00013702,2]
[423220874,1779943833000,-500.0,0.00013699,2]
[423220883,1779943833000,-150.0,0.00013821,2]
[423220865,1779943833000,-159.6708492,0.00013699,2]
[423220875,1779943833000,-150.0,0.00013702,2]
[423220882,1779943833000,-167.16,0.00013789,2]
[423220894,1779943833000,-898.33,0.00013976,2]
[423220888,1779943833000,-150.0,0.00013873,2]
[423220887,1779943833000,-150.0,0.00013862,2]
[423220889,1779943833000,-150.0,0.00013896,2]
[423220895,1779943833000,-150.0,0.00013987,2]
[423220890,1779943833000,-150.0,0.00013916,2]
[423220892,1779943833000,-150.0,0.00013959,2]
[423220893,1779943833000,-166.66,0.00013973,2]
[423220891,1779943833000,-150.0,0.00013916,2]
[423220896,1779943833000,-150.0,0.00013987,2]
[423220897,1779943833000,-250.0,0.00014,2]
[423220898,1779943833000,-150.0,0.00014001,2]
[423220900,1779943833000,-150.0,0.00014033,2]
[423220864,1779943833000,-500.0,0.00013699,2]
[423220886,1779943833000,-2351.0,0.00013859,2]
[423220863,1779943833000,-166.66,0.00013699,2]
[423220841,1779943833000,-2156.58,0.00013484,2]
[423220868,1779943833000,-500.0,0.00013699,2]
[423220902,1779943833000,-150.0,0.00014087,2]
[423220847,1779943833000,-150.0,0.00013488,2]
[423220848,1779943833000,-150.0,0.00013488,2]
[423220843,1779943833000,-150.0,0.00013488,2]
[423220844,1779943833000,-150.0,0.00013488,2]
[423220842,1779943833000,-150.0,0.00013488,2]
[423220845,1779943833000,-150.0,0.00013488,2]
[423220846,1779943833000,-150.0,0.00013488,2]
[423220849,1779943833000,-150.0,0.00013488,2]
[423220852,1779943833000,-150.0,0.00013573,2]
[423220850,1779943833000,-150.0,0.00013488,2]
[423220859,1779943833000,-150.0,0.00013659,2]
[423220861,1779943833000,-200.0,0.00013699,2]
[423220856,1779943833000,-156.72,0.00013644,2]
[423220857,1779943833000,-150.0,0.00013654,2]
[423220858,1779943833000,-898.33,0.00013659,2]
[423220860,1779943833000,-433.0,0.00013688,2]
[423220854,1779943833000,-150.0,0.00013624,2]
[423220853,1779943833000,-150.0,0.00013616,2]
[423220855,1779943833000,-6878.15269025,0.00013641,2]
[423220867,1779943833000,-500.0,0.00013699,2]
[423220873,1779943833000,-500.0,0.00013699,2]
[423220869,1779943833000,-500.0,0.00013699,2]
[423220871,1779943833000,-500.0,0.00013699,2]
[423220866,1779943833000,-500.0,0.00013699,2]
[423220872,1779943833000,-500.0,0.00013699,2]
[423220870,1779943833000,-500.0,0.00013699,2]
[423220862,1779943833000,-2500.0,0.00013699,2]
[423220901,1779943833000,-150.0,0.00014044,2]
[423220851,1779943833000,-150.0,0.0001353,2]
[423220899,1779943833000,-3094.68224695,0.00014009,2]
[423220937,1779943833000,-3300.0,0.000145,5]
[423220936,1779943833000,-150.0,0.00014487,2]
[423220947,1779943833000,-156.72,0.00014618,2]
[423220939,1779943833000,-4180.69422398,0.00014523,2]
[423220938,1779943833000,-150.0,0.00014515,2]
[423220946,1779943833000,-150.0,0.00014612,2]
[423220940,1779943833000,-150.0,0.00014558,2]
[423220944,1779943833000,-600.0,0.000146,5]
[423220942,1779943833000,-4180.69422398,0.00014577,2]
[423220941,1779943833000,-150.0,0.00014558,2]
[423220943,1779943833000,-150.0,0.00014578,2]
[423220945,1779943833000,-150.0,0.00014601,2]
[423220949,1779943833000,-150.0,0.00014644,2]
[423220930,1779943833000,-4180.69422399,0.00014415,2]
[423220959,1779943833000,-440.2843755,0.0001476,2]
[423220953,1779943833000,-600.0,0.000147,5]
[423220951,1779943833000,-4180.69422398,0.00014684,2]
[423220963,1779943833000,-1644.95767466,0.00014786,2]
[423220957,1779943833000,-440.2843755,0.00014737,2]
[423220954,1779943833000,-150.0,0.00014714,2]
[423220955,1779943833000,-150.0,0.00014729,2]
[423220952,1779943833000,-150.0,0.00014687,2]
[423220956,1779943833000,-150.0,0.00014737,2]
[423220958,1779943833000,-4180.69422398,0.00014738,2]
[423220961,1779943833000,-150.0,0.00014772,2]
[423220960,1779943833000,-150.0,0.00014772,2]
[423220962,1779943833000,-440.2843755,0.00014784,2]
[423220903,1779943833000,-600.0,0.000141,5]
[423220950,1779943833000,-150.0,0.00014653,2]
[423220931,1779943833000,-150.0,0.0001443,2]
[423220948,1779943833000,-4180.69422398,0.00014631,2]
[423220935,1779943833000,-150.0,0.00014487,2]
[423220929,1779943833000,-2600.0,0.000144,5]
[423220910,1779943833000,-4174.7111,0.000142,2]
[423220904,1779943833000,-166.66,0.0001411,2]
[423220906,1779943833000,-150.0,0.0001413,2]
[423220907,1779943833000,-150.0,0.00014154,2]
[423220909,1779943833000,-150.0,0.00014173,2]
[423220908,1779943833000,-150.0,0.00014169,2]
[423220912,1779943833000,-550.4816,0.000142,2]
[423220922,1779943833000,-150.0,0.00014301,2]
[423220913,1779943833000,-1300.0,0.000142,5]
[423220911,1779943833000,-12748.78,0.000142,2]
[423220914,1779943833000,-150.0,0.00014216,2]
[423220915,1779943833000,-150.0,0.00014237,2]
[423220920,1779943833000,-150.0,0.00014258,2]
[423220916,1779943833000,-150.0,0.00014237,2]
[423220905,1779943833000,-150.0,0.0001413,2]
[423220934,1779943833000,-150.0,0.00014472,2]
[423220933,1779943833000,-4180.69422398,0.00014469,2]
[423220932,1779943833000,-150.0,0.00014441,2]
[423220924,1779943833000,-150.0,0.0001432,2]
[423220917,1779943833000,-150.0,0.00014237,2]
[423220925,1779943833000,-150.0,0.00014344,2]
[423220928,1779943833000,-150.0,0.00014387,2]
[423220927,1779943833000,-166.66,0.00014384,2]
[423220923,1779943833000,-150.0,0.00014305,2]
[423220919,1779943833000,-166.66,0.00014247,2]
[423220918,1779943833000,-355.02774462,0.00014238,2]
[423220921,1779943833000,-1900.0,0.000143,5]
[423220926,1779943833000,-150.0,0.00014344,2]
[423220967,1779943834000,-600.0,0.000148,5]
[423220964,1779943834000,-4180.69422398,0.00014792,2]
[423220965,1779943834000,-1644.95767465,0.00014799,2]
[423220966,1779943834000,-5000.0,0.000148,2]
[423220968,1779943834000,-440.2843755,0.00014807,2]
[423220974,1779943834000,-69.13169042,0.00014821,3]
[423220971,1779943834000,-150.0,0.0001482,2]
[423220970,1779943834000,-150.0,0.00014815,2]
[423220972,1779943834000,-4752.29104039,0.00014821,3]
[423220973,1779943834000,-500.0,0.00012409,2]
[423220969,1779943834000,-1644.95767465,0.00014811,2]
[423220992,1779943837000,-440.2843755,0.00014853,2]
[423220991,1779943837000,-150.0,0.0001485,2]
[423220990,1779943837000,-2291.47019397,0.0001485,2]
[423221000,1779943837000,-500.0,0.00014856,2]
[423220987,1779943837000,-8376.80648048,0.00014847,3]
[423220986,1779943837000,-4180.69422398,0.00014846,2]
[423220988,1779943837000,-16623.19351952,0.00014847,3]
[423220985,1779943837000,-25000.0,0.00014838,3]
[423220984,1779943837000,-2000.0,0.00014838,2]
[423220982,1779943837000,-440.2843755,0.0001483,2]
[423220983,1779943837000,-1644.95767465,0.00014837,2]
[423220981,1779943837000,-25000.0,0.0001483,3]
[423220980,1779943837000,-1644.95767465,0.00014824,2]
[423220978,1779943837000,-190.43784834,0.00012409,2]
[423220977,1779943837000,-500.0,0.00012409,2]
[423220989,1779943837000,-1644.95767465,0.00014849,2]
[423220979,1779943837000,-20178.57726919,0.00014821,3]
[423220993,1779943837000,-500.0,0.00014856,2]
[423221002,1779943837000,-500.0,0.00014856,2]
[423220996,1779943837000,-500.0,0.00014856,2]
[423220995,1779943837000,-500.0,0.00014856,2]
[423221013,1779943837000,-25000.0,0.00014874,3]
[423221011,1779943837000,-500.0,0.00014873,2]
[423221007,1779943837000,-500.0,0.00014856,2]
[423221004,1779943837000,-500.0,0.00014856,2]
[423221006,1779943837000,-500.0,0.00014856,2]
[423221010,1779943837000,-25000.0,0.00014865,3]
[423221005,1779943837000,-25000.0,0.00014856,3]
[423221012,1779943837000,-575.39,0.00014873,2]
[423221008,1779943837000,-150.0,0.00014858,2]
[423221003,1779943837000,-876.96,0.00014856,2]
[423221001,1779943837000,-787.02,0.00014856,2]
[423220998,1779943837000,-500.0,0.00014856,2]
[423220999,1779943837000,-500.0,0.00014856,2]
[423220997,1779943837000,-500.0,0.00014856,2]
[423221009,1779943837000,-1644.95767465,0.00014862,2]
[423220994,1779943837000,-500.0,0.00014856,2]
[423221057,1779943838000,-150.0,0.00014901,2]
[423221059,1779943838000,-172915.5868577,0.00014924,2]
[423221061,1779943838000,-562.9028904,0.00014936,2]
[423221060,1779943838000,-242.31810624,0.00014925,2]
[423221049,1779943838000,-1644.95767465,0.000149,2]
[423221047,1779943838000,-1009.8557,0.000149,2]
[423221050,1779943838000,-4180.69422398,0.000149,2]
[423221048,1779943838000,-25000.0,0.000149,3]
[423221055,1779943838000,-35404.94269047,0.000149,2]
[423221046,1779943838000,-509779.4847,0.000149,2]
[423221051,1779943838000,-600.0,0.000149,5]
[423221058,1779943838000,-169.6454295,0.00014903,2]
[423221067,1779943838000,-500.0,0.00014961,2]
[423221056,1779943838000,-1652.02497352,0.000149,2]
[423221053,1779943838000,-440.2843755,0.000149,2]
[423221054,1779943838000,-399.79715885,0.000149,2]
[423221072,1779943838000,-161465.9504015,0.00014962,2]
[423221062,1779943838000,-20357.8463247,0.00014937,2]
[423221071,1779943838000,-325.84,0.00014961,2]
[423221045,1779943838000,-500.0,0.000149,2]
[423221069,1779943838000,-500.0,0.00014961,2]
[423221070,1779943838000,-575.39,0.00014961,2]
[423221068,1779943838000,-500.0,0.00014961,2]
[423221064,1779943838000,-744.4662136,0.00014942,2]
[423221063,1779943838000,-6348.0304693,0.00014937,2]
[423221052,1779943838000,-686.93642031,0.000149,2]
[423221044,1779943838000,-202483.4101,0.000149,2]
[423221031,1779943838000,-500.0,0.00014899,2]
[423221042,1779943838000,-537.28,0.00014899,2]
[423221065,1779943838000,-150.0,0.00014943,2]
[423221014,1779943838000,-1644.95767465,0.00014875,2]
[423221016,1779943838000,-686.93642032,0.00014877,2]
[423221017,1779943838000,-25000.0,0.00014882,3]
[423221015,1779943838000,-440.2843755,0.00014877,2]
[423221019,1779943838000,-686.93642031,0.00014889,2]
[423221018,1779943838000,-1644.95767465,0.00014887,2]
[423221022,1779943838000,-500.0,0.00014899,2]
[423221021,1779943838000,-25000.0,0.00014891,3]
[423221020,1779943838000,-198.41726517,0.0001489,2]
[423221032,1779943838000,-500.0,0.00014899,2]
[423221033,1779943838000,-500.0,0.00014899,2]
[423221043,1779943838000,-407.0321,0.000149,2]
[423221035,1779943838000,-575.39,0.00014899,2]
[423221025,1779943838000,-500.0,0.00014899,2]
[423221023,1779943838000,-500.0,0.00014899,2]
[423221030,1779943838000,-500.0,0.00014899,2]
[423221026,1779943838000,-500.0,0.00014899,2]
[423221028,1779943838000,-500.0,0.00014899,2]
[423221029,1779943838000,-500.0,0.00014899,2]
[423221036,1779943838000,-575.39,0.00014899,2]
[423221038,1779943838000,-500.0,0.00014899,2]
[423221039,1779943838000,-500.0,0.00014899,2]
[423221040,1779943838000,-500.0,0.00014899,2]
[423221037,1779943838000,-575.39,0.00014899,2]
[423221041,1779943838000,-500.0,0.00014899,2]
[423221034,1779943838000,-500.0,0.00014899,2]
[423221073,1779943838000,-150.0,0.00014986,2]
[423221093,1779943838000,-500.0,0.00014999,2]
[423221074,1779943838000,-150.0,0.00014986,2]
[423221103,1779943838000,-500.0,0.00014999,2]
[423221109,1779943838000,-500.0,0.00014999,2]
[423221106,1779943838000,-500.0,0.00014999,2]
[423221105,1779943838000,-500.0,0.00014999,2]
[423221108,1779943838000,-500.0,0.00014999,2]
[423221111,1779943838000,-500.0,0.00014999,2]
[423221113,1779943838000,-500.0,0.00014999,2]
[423221114,1779943838000,-500.0,0.00014999,2]
[423221118,1779943838000,-500.0,0.00014999,2]
[423221116,1779943838000,-500.0,0.00014999,2]
[423221117,1779943838000,-500.0,0.00014999,2]
[423221119,1779943838000,-500.0,0.00014999,2]
[423221104,1779943838000,-500.0,0.00014999,2]
[423221121,1779943838000,-500.0,0.00014999,2]
[423221112,1779943838000,-500.0,0.00014999,2]
[423221126,1779943838000,-500.0,0.00014999,2]
[423221123,1779943838000,-500.0,0.00014999,2]
[423221127,1779943838000,-500.0,0.00014999,2]
[423221124,1779943838000,-500.0,0.00014999,2]
[423221122,1779943838000,-311.50322523,0.00014999,2]
[423221129,1779943838000,-500.0,0.00014999,2]
[423221125,1779943838000,-500.0,0.00014999,2]
[423221131,1779943838000,-500.0,0.00014999,2]
[423221130,1779943838000,-500.0,0.00014999,2]
[423221066,1779943838000,-736.0,0.00014959,2]
[423221128,1779943838000,-500.0,0.00014999,2]
[423221115,1779943838000,-500.0,0.00014999,2]
[423221101,1779943838000,-500.0,0.00014999,2]
[423221120,1779943838000,-500.0,0.00014999,2]
[423221107,1779943838000,-500.0,0.00014999,2]
[423221081,1779943838000,-198.41726517,0.0001499,2]
[423221110,1779943838000,-500.0,0.00014999,2]
[423221078,1779943838000,-293.68053697,0.00014986,2]
[423221076,1779943838000,-153.62961216,0.00014986,2]
[423221075,1779943838000,-150.67938171,0.00014986,2]
[423221080,1779943838000,-296.36022384,0.00014986,2]
[423221084,1779943838000,-500.0,0.00014999,2]
[423221077,1779943838000,-160.51919625,0.00014986,2]
[423221083,1779943838000,-500.0,0.00014999,2]
[423221085,1779943838000,-500.0,0.00014999,2]
[423221079,1779943838000,-150.0,0.00014986,2]
[423221086,1779943838000,-398.26046862,0.00014999,2]
[423221088,1779943838000,-500.71247553,0.00014999,2]
[423221091,1779943838000,-500.0,0.00014999,2]
[423221082,1779943838000,-198.41726517,0.0001499,2]
[423221100,1779943838000,-336.21063525,0.00014999,2]
[423221098,1779943838000,-500.0,0.00014999,2]
[423221090,1779943838000,-265.51726657,0.00014999,2]
[423221087,1779943838000,-502.4828642,0.00014999,2]
[423221096,1779943838000,-500.0,0.00014999,2]
[423221089,1779943838000,-500.0,0.00014999,2]
[423221097,1779943838000,-500.0,0.00014999,2]
[423221092,1779943838000,-1734.85718942,0.00014999,5]
[423221094,1779943838000,-500.0,0.00014999,2]
[423221099,1779943838000,-500.0,0.00014999,2]
[423221102,1779943838000,-500.0,0.00014999,2]
[423221095,1779943838000,-500.0,0.00014999,2]
[423221179,1779943839000,-500.0,0.00014999,2]
[423221174,1779943839000,-787.02,0.00014999,2]
[423221182,1779943839000,-500.0,0.00014999,2]
[423221171,1779943839000,-787.02,0.00014999,2]
[423221177,1779943839000,-787.02,0.00014999,2]
[423221164,1779943839000,-787.02,0.00014999,2]
[423221166,1779943839000,-787.02,0.00014999,2]
[423221165,1779943839000,-787.02,0.00014999,2]
[423221167,1779943839000,-787.02,0.00014999,2]
[423221163,1779943839000,-787.02,0.00014999,2]
[423221168,1779943839000,-787.02,0.00014999,2]
[423221176,1779943839000,-787.02,0.00014999,2]
[423221181,1779943839000,-500.0,0.00014999,2]
[423221190,1779943839000,-500.0,0.00014999,2]
[423221173,1779943839000,-787.02,0.00014999,2]
[423221175,1779943839000,-787.02,0.00014999,2]
[423221180,1779943839000,-500.0,0.00014999,2]
[423221178,1779943839000,-787.07918136,0.00014999,2]
[423221183,1779943839000,-500.0,0.00014999,2]
[423221185,1779943839000,-500.0,0.00014999,2]
[423221186,1779943839000,-500.0,0.00014999,2]
[423221191,1779943839000,-500.0,0.00014999,2]
[423221195,1779943839000,-500.0,0.00014999,2]
[423221189,1779943839000,-500.0,0.00014999,2]
[423221187,1779943839000,-500.0,0.00014999,2]
[423221170,1779943839000,-787.02,0.00014999,2]
[423221194,1779943839000,-500.0,0.00014999,2]
[423221172,1779943839000,-787.02,0.00014999,2]
[423221169,1779943839000,-787.02,0.00014999,2]
[423221138,1779943839000,-500.0,0.00014999,2]
[423221161,1779943839000,-787.02,0.00014999,2]
[423221188,1779943839000,-500.0,0.00014999,2]
[423221132,1779943839000,-500.0,0.00014999,2]
[423221135,1779943839000,-500.0,0.00014999,2]
[423221133,1779943839000,-500.0,0.00014999,2]
[423221137,1779943839000,-500.0,0.00014999,2]
[423221136,1779943839000,-500.0,0.00014999,2]
[423221140,1779943839000,-500.0,0.00014999,2]
[423221141,1779943839000,-525.71063525,0.00014999,2]
[423221143,1779943839000,-500.0,0.00014999,2]
[423221142,1779943839000,-500.0,0.00014999,2]
[423221144,1779943839000,-500.0,0.00014999,2]
[423221139,1779943839000,-500.0,0.00014999,2]
[423221134,1779943839000,-500.0,0.00014999,2]
[423221158,1779943839000,-787.02,0.00014999,2]
[423221146,1779943839000,-500.0,0.00014999,2]
[423221149,1779943839000,-500.0,0.00014999,2]
[423221147,1779943839000,-500.0,0.00014999,2]
[423221145,1779943839000,-500.0,0.00014999,2]
[423221148,1779943839000,-500.0,0.00014999,2]
[423221150,1779943839000,-500.0,0.00014999,2]
[423221155,1779943839000,-787.02,0.00014999,2]
[423221154,1779943839000,-479.18442925,0.00014999,2]
[423221151,1779943839000,-500.0,0.00014999,2]
[423221153,1779943839000,-500.0,0.00014999,2]
[423221152,1779943839000,-500.0,0.00014999,2]
[423221157,1779943839000,-787.02,0.00014999,2]
[423221162,1779943839000,-787.02,0.00014999,2]
[423221160,1779943839000,-787.02,0.00014999,2]
[423221156,1779943839000,-787.02,0.00014999,2]
[423221193,1779943839000,-500.0,0.00014999,2]
[423221244,1779943839000,-500.0,0.00014999,2]
[423221192,1779943839000,-544.38223571,0.00014999,2]
[423221227,1779943839000,-500.0,0.00014999,2]
[423221231,1779943839000,-226.61703358,0.00014999,2]
[423221232,1779943839000,-500.0,0.00014999,2]
[423221224,1779943839000,-500.0,0.00014999,2]
[423221222,1779943839000,-500.0,0.00014999,2]
[423221229,1779943839000,-500.0,0.00014999,2]
[423221225,1779943839000,-500.0,0.00014999,2]
[423221235,1779943839000,-500.0,0.00014999,2]
[423221242,1779943839000,-500.0,0.00014999,2]
[423221237,1779943839000,-526.59276587,0.00014999,2]
[423221238,1779943839000,-500.0,0.00014999,2]
[423221236,1779943839000,-500.0,0.00014999,2]
[423221246,1779943839000,-500.0,0.00014999,2]
[423221228,1779943839000,-500.0,0.00014999,2]
[423221243,1779943839000,-500.0,0.00014999,2]
[423221241,1779943839000,-500.0,0.00014999,2]
[423221245,1779943839000,-500.0,0.00014999,2]
[423221248,1779943839000,-500.0,0.00014999,2]
[423221249,1779943839000,-500.0,0.00014999,2]
[423221247,1779943839000,-500.0,0.00014999,2]
[423221252,1779943839000,-500.0,0.00014999,2]
[423221254,1779943839000,-500.0,0.00014999,2]
[423221255,1779943839000,-500.0,0.00014999,2]
[423221253,1779943839000,-510.00564185,0.00014999,2]
[423221256,1779943839000,-500.0,0.00014999,2]
[423221250,1779943839000,-500.0,0.00014999,2]
[423221251,1779943839000,-500.0,0.00014999,2]
[423221184,1779943839000,-500.0,0.00014999,2]
[423221240,1779943839000,-500.0,0.00014999,2]
[423221230,1779943839000,-500.0,0.00014999,2]
[423221239,1779943839000,-500.0,0.00014999,2]
[423221234,1779943839000,-500.0,0.00014999,2]
[423221197,1779943839000,-876.96,0.00014999,2]
[423221207,1779943839000,-876.96,0.00014999,2]
[423221208,1779943839000,-876.96,0.00014999,2]
[423221198,1779943839000,-876.96,0.00014999,2]
[423221226,1779943839000,-500.0,0.00014999,2]
[423221200,1779943839000,-876.96,0.00014999,2]
[423221196,1779943839000,-456.79764672,0.00014999,2]
[423221201,1779943839000,-876.96,0.00014999,2]
[423221199,1779943839000,-876.96,0.00014999,2]
[423221204,1779943839000,-876.96,0.00014999,2]
[423221203,1779943839000,-876.96,0.00014999,2]
[423221206,1779943839000,-876.96,0.00014999,2]
[423221205,1779943839000,-876.96,0.00014999,2]
[423221209,1779943839000,-876.96,0.00014999,2]
[423221202,1779943839000,-876.96,0.00014999,2]
[423221213,1779943839000,-876.96,0.00014999,2]
[423221211,1779943839000,-876.96,0.00014999,2]
[423221233,1779943839000,-500.0,0.00014999,2]
[423221223,1779943839000,-500.0,0.00014999,2]
[423221219,1779943839000,-876.98810453,0.00014999,2]
[423221217,1779943839000,-876.96,0.00014999,2]
[423221221,1779943839000,-500.0,0.00014999,2]
[423221220,1779943839000,-500.0,0.00014999,2]
[423221216,1779943839000,-876.96,0.00014999,2]
[423221212,1779943839000,-876.96,0.00014999,2]
[423221215,1779943839000,-876.96,0.00014999,2]
[423221218,1779943839000,-876.96,0.00014999,2]
[423221214,1779943839000,-876.96,0.00014999,2]
[423221210,1779943839000,-876.96,0.00014999,2]
[423221278,1779943840000,-575.39,0.00014999,2]
[423221282,1779943840000,-575.39,0.00014999,2]
[423221276,1779943840000,-575.39,0.00014999,2]
[423221274,1779943840000,-626.29494411,0.00014999,2]
[423221272,1779943840000,-500.0,0.00014999,2]
[423221271,1779943840000,-500.0,0.00014999,2]
[423221268,1779943840000,-500.0,0.00014999,2]
[423221270,1779943840000,-500.0,0.00014999,2]
[423221269,1779943840000,-500.0,0.00014999,2]
[423221262,1779943840000,-500.0,0.00014999,2]
[423221266,1779943840000,-500.0,0.00014999,2]
[423221261,1779943840000,-500.0,0.00014999,2]
[423221265,1779943840000,-500.0,0.00014999,2]
[423221263,1779943840000,-500.0,0.00014999,2]
[423221260,1779943840000,-500.0,0.00014999,2]
[423221258,1779943840000,-500.0,0.00014999,2]
[423221257,1779943840000,-336.14704349,0.00014999,2]
[423221259,1779943840000,-500.0,0.00014999,2]
[423221280,1779943840000,-575.39,0.00014999,2]
[423221264,1779943840000,-500.0,0.00014999,2]
[423221277,1779943840000,-575.39,0.00014999,2]
[423221267,1779943840000,-500.0,0.00014999,2]
[423221273,1779943840000,-500.0,0.00014999,2]
[423221299,1779943840000,-4070979.65748591,0.00015,2]
[423221300,1779943840000,-730.75358972,0.00015,2]
[423221298,1779943840000,-1876.55906067,0.00015,2]
[423221296,1779943840000,-1585.0783066,0.00015,2]
[423221297,1779943840000,-4435.5532812,0.00015,2]
[423221287,1779943840000,-575.39,0.00014999,2]
[423221291,1779943840000,-575.39,0.00014999,2]
[423221288,1779943840000,-575.39,0.00014999,2]
[423221290,1779943840000,-575.39,0.00014999,2]
[423221289,1779943840000,-575.39,0.00014999,2]
[423221292,1779943840000,-575.39,0.00014999,2]
[423221295,1779943840000,-12397455.51444591,0.00015,2]
[423221281,1779943840000,-575.39,0.00014999,2]
[423221279,1779943840000,-575.39,0.00014999,2]
[423221283,1779943840000,-575.39,0.00014999,2]
[423221286,1779943840000,-575.39,0.00014999,2]
[423221275,1779943840000,-575.39,0.00014999,2]
[423221285,1779943840000,-575.39,0.00014999,2]